lending/lending_fUSD_20251124
["ID","MTS","AMOUNT","RATE_DAILY","PERIOD"]
[394803621,1763967053843,-500.0,0.00040998,41]
[394803622,1763967053852,-559.19188,0.00040998,30]
[394803623,1763967053861,-500.0,0.00040998,31]
[394803624,1763967053871,-285.53961118,0.00040998,41]
[394803625,1763967053881,-250.0,0.00040998,41]
[394803626,1763967053890,-478.75725327,0.00040998,41]
[394803627,1763967053899,-200.0,0.00040998,30]
[394803628,1763967053910,-579.88197956,0.00040998,31]
[394803629,1763967053920,-500.0,0.00040998,41]
[394803630,1763967053930,-601.3376128,0.00040998,41]
[394803631,1763967053940,-500.0,0.00040998,30]
[394803632,1763967053950,-500.0,0.00040998,31]
[394803633,1763967053960,-500.0,0.00040998,41]
[394803634,1763967053970,-250.0,0.00040998,30]
[394803635,1763967053981,-250.0,0.00040998,31]
[394803636,1763967053991,-500.0,0.00040998,30]
[394803637,1763967054001,-250.0,0.00040998,41]
[394803638,1763967054011,-500.0,0.00040998,31]
[394803639,1763967054021,-500.0,0.00040998,41]
[394803640,1763967054030,-537.6845,0.00040998,30]
[394803641,1763967054040,-178.44322924,0.00040998,31]
[394803642,1763967054050,-250.0,0.00040998,30]
[394803643,1763967054060,-266.33499402,0.00040998,31]
[394803644,1763967054070,-167.18070033,0.00040999,21]
[394803645,1763967054080,-500.0,0.00040999,31]
[394803646,1763967054090,-500.0,0.00040999,41]
[394803647,1763967054101,-500.0,0.00040999,120]
[394803648,1763967054111,-500.0,0.00040999,31]
[394803649,1763967054122,-250.0,0.00040999,31]
[394803650,1763967054132,-414.0,0.00040999,31]
[394803651,1763967054143,-250.0,0.00040999,31]
[394803652,1763967054153,-500.0,0.00040999,41]
[394803653,1763967054204,-250.0,0.00040999,41]
[394803654,1763967054214,-500.0,0.00040999,31]
[394803655,1763967054223,-429.318,0.00040999,41]
[394803656,1763967054232,-250.0,0.00040999,41]
[394803657,1763967054241,-520.0,0.00040999,31]
[394803658,1763967054251,-500.0,0.00040999,41]
[394803659,1763967054260,-539.24,0.00040999,41]
[394803660,1763967054271,-500.0,0.00040999,31]
[394803661,1763967054281,-500.0,0.00040999,41]
[394803662,1763967054293,-152.33888936,0.00040999,31]
[394803663,1763967054303,-250.0,0.00040999,31]
[394803664,1763967054312,-250.0,0.00040999,41]
[394803665,1763967054322,-500.0,0.00040999,31]
[394803666,1763967054332,-500.0,0.00040999,41]
[394803667,1763967054342,-500.0,0.00040999,31]
[394803668,1763967054351,-518.5,0.00040999,41]
[394803669,1763967054360,-300.0,0.00040999,31]
[394803670,1763967054370,-434.07199322,0.00040999,41]
[394803671,1763967054379,-250.0,0.00040999,31]
[394803672,1763967054388,-250.0,0.00040999,41]
[394803673,1763967054397,-1031.0844921,0.00040999,120]
[394803674,1763967054409,-21499645.14225551,0.00041,2]
[394803675,1763967054418,-401.14802536,0.00041,2]
[394803676,1763967054427,-3375.80896277,0.00041,30]
[394803677,1763967054436,-1000.0,0.00041,120]
[394803678,1763967054445,-1000.0,0.00041,120]
[394803679,1763967054454,-1000.0,0.00041,120]
[394803680,1763967054464,-1000.0,0.00041,120]
[394803681,1763967054474,-1000.0,0.00041,120]
[394803682,1763967054482,-1000.0,0.00041,120]
[394803683,1763967054492,-1000.0,0.00041,120]
[394803684,1763967054501,-1000.0,0.00041,120]
[394803685,1763967054510,-1000.0,0.00041,120]
[394803686,1763967054519,-1000.0,0.00041,120]
[394803687,1763967054528,-624.09363037,0.00041,30]
[394803688,1763967054537,-520.99446828,0.00041,30]
[394803689,1763967054547,-196.52828928,0.00041,3]
[394803690,1763967054556,-1265.179493,0.00041,120]
[394803691,1763967054565,-1475319.15046229,0.00041,2]
[394803692,1763967054574,-1352.36,0.00041,30]
[394803693,1763967054584,-2863.74,0.00041,14]
[394803694,1763967054593,-928703.85072836,0.00041,2]
[394803695,1763967054602,-400160.2855546,0.00041,2]
[394803696,1763967054612,-534.91,0.00041,120]
[394803697,1763967054621,-979.66514028,0.00041,2]
[394803698,1763967054630,-1549060.3194247,0.00041,2]
[394803699,1763967054640,-3020.32,0.00041,120]
[394803700,1763967054649,-202.02734916,0.00041,120]
[394803701,1763967054659,-544.8,0.00041,30]
[394803702,1763967054668,-2456434.20415329,0.00041,2]
[394803703,1763967054679,-401.23247152,0.00041,15]
[394803704,1763967054689,-500.0,0.00041,15]
[394803705,1763967054698,-500.0,0.00041,15]
[394803706,1763967054707,-500.0,0.00041,15]
[394803707,1763967054716,-500.0,0.00041,15]
[394803708,1763967054726,-500.0,0.00041,15]
[394803709,1763967054736,-500.0,0.00041,15]
[394803710,1763967054745,-500.0,0.00041,15]
[394803711,1763967054755,-500.0,0.00041,15]
[394803712,1763967054764,-478.71520679,0.00041,120]
[394803713,1763967054774,-2000.0,0.00041,120]
[394803714,1763967054783,-540.10813242,0.00041,30]
[394803715,1763967054792,-3681.0,0.00041,120]
[394803716,1763967054801,-513507.78278669,0.00041,2]
[394803717,1763967054811,-611.90328166,0.00041,60]
[394803718,1763967054820,-63611.45,0.00041,120]
[394803719,1763967054829,-167.18070033,0.00041,21]
[394803720,1763967054839,-167.18070033,0.00041,21]
[394803721,1763967054849,-250.0,0.00041,14]
[394803722,1763967054858,-250.0,0.00041,14]
[394803723,1763967054868,-250.0,0.00041,14]
[394803724,1763967054878,-316.9,0.00041,14]
[394803725,1763967054889,-17588.26928859,0.00041,30]
[394803726,1763967054898,-17588.26928859,0.00041,30]
[394803727,1763967054908,-17588.26928859,0.00041,30]
[394803728,1763967054918,-17588.26928859,0.00041,30]
[394803729,1763967054927,-372.56261053,0.00041,30]
[394803730,1763967054936,-372.56261053,0.00041,30]
[394803731,1763967054945,-281.16195658,0.00041,120]
[394803732,1763967054955,-750.0,0.00041,20]
[394803733,1763967054964,-361.4492085,0.00041,30]
[394803734,1763967054974,-361.4492085,0.00041,30]
[394803735,1763967054983,-150.0,0.00041009,120]
[394803736,1763967054993,-153.69,0.00041039,2]
[394803737,1763967055002,-1081.66,0.00041055,30]
[394803738,1763967055012,-1081.66,0.00041055,30]
[394803739,1763967055021,-481.10222853,0.0004108,30]
[394803740,1763967055031,-300.0,0.00041095,30]
[394803741,1763967055041,-300.0,0.00041095,30]
[394803742,1763967055051,-300.0,0.00041095,30]
[394803743,1763967055061,-300.0,0.00041095,30]
[394803744,1763967055071,-300.0,0.00041095,30]
[394803745,1763967055081,-300.0,0.00041095,30]
[394803746,1763967055092,-427.55,0.00041095,30]
[394803747,1763967055101,-300.0,0.00041095,30]
[394803748,1763967055111,-300.0,0.00041095,30]
[394803749,1763967055121,-300.0,0.00041095,30]
[394803750,1763967055130,-300.0,0.00041095,30]
[394803751,1763967055139,-300.0,0.00041095,30]
[394803752,1763967055149,-300.0,0.00041095,30]
[394803753,1763967055162,-427.55,0.00041095,30]
[394803754,1763967055173,-300.0,0.00041095,30]
[394803755,1763967055182,-300.0,0.00041095,30]
[394803756,1763967055192,-300.0,0.00041095,30]
[394803757,1763967055201,-300.0,0.00041095,30]
[394803758,1763967055211,-300.0,0.00041095,30]
[394803759,1763967055220,-300.0,0.00041095,30]
[394803760,1763967055229,-427.55,0.00041095,30]
[394803761,1763967055239,-300.0,0.00041095,30]
[394803762,1763967055248,-300.0,0.00041095,30]
[394803763,1763967055257,-300.0,0.00041095,30]
[394803764,1763967055266,-300.0,0.00041095,30]
[394803765,1763967055276,-300.0,0.00041095,30]
[394803766,1763967055285,-300.0,0.00041095,30]
[394803767,1763967055298,-427.55,0.00041095,30]
[394803768,1763967055307,-300.0,0.00041095,30]
[394803769,1763967055316,-300.0,0.00041095,30]
[394803770,1763967055325,-300.0,0.00041095,30]
[394803771,1763967055335,-300.0,0.00041095,30]
[394803772,1763967055343,-300.0,0.00041095,30]
[394803773,1763967055352,-300.0,0.00041095,30]
[394803774,1763967055361,-427.55,0.00041095,30]
[394803775,1763967055371,-300.0,0.00041095,30]
[394803776,1763967055381,-300.0,0.00041095,30]
[394803777,1763967055390,-300.0,0.00041095,30]
[394803778,1763967055399,-300.0,0.00041095,30]
[394803779,1763967055411,-300.0,0.00041095,30]
[394803780,1763967055420,-300.0,0.00041095,30]
[394803781,1763967055429,-427.55,0.00041095,30]
[394803782,1763967055438,-300.0,0.00041095,30]
[394803783,1763967055448,-300.0,0.00041095,30]
[394803784,1763967055457,-300.0,0.00041095,30]
[394803785,1763967055466,-300.0,0.00041095,30]
[394803786,1763967055476,-300.0,0.00041095,30]
[394803787,1763967055485,-300.0,0.00041095,30]
[394803788,1763967055495,-427.55,0.00041095,30]
[394803789,1763967055504,-300.0,0.00041095,30]
[394803790,1763967055514,-300.0,0.00041095,30]
[394803791,1763967055523,-300.0,0.00041095,30]
[394803792,1763967055532,-300.0,0.00041095,30]
[394803793,1763967055543,-377.85,0.00041095,30]
[394803794,1763967055552,-300.0,0.00041095,30]
[394803795,1763967055563,-300.0,0.00041095,30]
[394803796,1763967055572,-300.0,0.00041095,30]
[394803797,1763967055581,-300.0,0.00041095,30]
[394803798,1763967055591,-443.9093401,0.00041095,30]
[394803799,1763967055600,-374.0,0.00041095,5]
[394803800,1763967055609,-897.72,0.00041095,8]
[394803801,1763967055619,-650.99706478,0.00041095,30]
[394803802,1763967055628,-500.0,0.00041095,90]
[394803803,1763967055637,-500.0,0.00041095,90]
[394803804,1763967055648,-500.0,0.00041095,90]
[394803805,1763967055658,-500.62419017,0.00041095,90]
[394803806,1763967055668,-1554.11,0.00041095,2]
[394803807,1763967055677,-500.0,0.00041096,31]
[394803808,1763967055686,-440.61,0.00041096,120]
[394803809,1763967055695,-510.67,0.00041096,120]
[394803810,1763967055705,-158.79,0.00041096,2]
[394803811,1763967055714,-449.859067,0.00041096,50]
[394803812,1763967055723,-449.859067,0.00041096,50]
[394803813,1763967055733,-449.859067,0.00041096,50]
[394803814,1763967055743,-449.859067,0.00041096,50]
[394803815,1763967055752,-449.859067,0.00041096,50]
[394803816,1763967055761,-449.859067,0.00041096,50]
[394803817,1763967055772,-449.859067,0.00041096,50]
[394803818,1763967055781,-449.859067,0.00041096,50]
[394803819,1763967055791,-449.859067,0.00041096,50]
[394803820,1763967055800,-449.859067,0.00041096,50]
[394803821,1763967055809,-449.859067,0.00041096,50]
[394803822,1763967055818,-449.859067,0.00041096,50]
[394803823,1763967055827,-449.859067,0.00041096,50]
[394803824,1763967055836,-449.859067,0.00041096,50]
[394803825,1763967055845,-449.859067,0.00041096,50]
[394803826,1763967055854,-449.859067,0.00041096,50]
[394803827,1763967055864,-449.859067,0.00041096,50]
[394803828,1763967055873,-449.859067,0.00041096,50]
[394803829,1763967055882,-449.859067,0.00041096,50]
[394803830,1763967055891,-449.859068,0.00041096,50]
[394803831,1763967055900,-2200.0,0.00041096,120]
[394803832,1763967055913,-1000.0,0.00041096,15]
[394803833,1763967055923,-1082.0,0.00041096,120]
[394803834,1763967055932,-650.0,0.000411,2]
[394803835,1763967055941,-500.0,0.000411,2]
[394803836,1763967055950,-331.0,0.00041124,2]
[394803837,1763967055959,-500.0,0.00041126,8]
[394803838,1763967055968,-161.19,0.000412,30]
[394803839,1763967055977,-150.0,0.00041217,120]
[394803840,1763967055986,-150.0,0.00041229,120]
[394803841,1763967055996,-2177.49821703,0.0004123,5]
[394803842,1763967056005,-1000.0,0.00041233,15]
[394803843,1763967056014,-1082.0,0.00041233,120]
[394803844,1763967056023,-3250.33,0.00041263,8]
[394803845,1763967056032,-500.0,0.00041263,8]
[394803846,1763967056041,-500.0,0.00041264,8]
[394803847,1763967056051,-1251.15,0.00041264,8]
[394803848,1763967056060,-1813.73,0.00041264,8]
[394803849,1763967056070,-689.44,0.00041264,8]
[394803850,1763967056079,-800.0,0.00041266,60]
[394803851,1763967056088,-500.0,0.00041268,8]
[394803852,1763967056097,-568.85,0.00041268,8]
[394803853,1763967056107,-1571.63,0.00041268,8]
[394803854,1763967056116,-609.0,0.00041273,2]
[394803855,1763967056126,-576.0,0.00041273,2]
[394803856,1763967056135,-1320.0,0.00041273,2]
[394803857,1763967056144,-822.0,0.00041273,2]
[394803858,1763967056153,-1601.0,0.00041273,2]
[394803859,1763967056164,-659.0,0.00041273,2]
[394803860,1763967056174,-1256.0,0.00041273,2]
[394803861,1763967056184,-1748.729,0.00041273,2]
[394803862,1763967056194,-1005.752,0.00041273,2]
[394803863,1763967056203,-168.0,0.00041323,2]
[394803864,1763967056212,-1081.66,0.00041329,30]
[394803865,1763967056221,-1081.66,0.00041329,30]
[394803866,1763967056231,-897.72,0.00041369,8]
[394803867,1763967056241,-1554.11,0.00041369,2]
[394803868,1763967056251,-1000.0,0.0004137,15]
[394803869,1763967056261,-1082.0,0.0004137,120]
[394803870,1763967056270,-300.0,0.000414,120]
[394803871,1763967056280,-500.0,0.000414,8]
[394803872,1763967056290,-750.0,0.0004141,20]
[394803873,1763967056303,-1270.04616316,0.0004142,120]
[394803874,1763967056313,-1142.24060375,0.000415,120]
[394803875,1763967056323,-166.75,0.00041503,2]
[394803876,1763967056333,-1000.0,0.00041507,15]
[394803877,1763967056343,-1082.0,0.00041507,120]
[394803878,1763967056352,-250.0,0.00041521,10]
[394803879,1763967056362,-3250.33,0.00041537,8]
[394803880,1763967056374,-500.0,0.00041537,8]
[394803881,1763967056385,-500.0,0.00041538,8]
[394803882,1763967056394,-1251.15,0.00041538,8]
[394803883,1763967056404,-1813.73,0.00041538,8]
[394803884,1763967056416,-689.44,0.00041538,8]
[394803885,1763967056425,-500.0,0.00041542,8]
[394803886,1763967056434,-568.85,0.00041542,8]
[394803887,1763967056444,-1571.63,0.00041542,8]
[394803888,1763967056454,-410.36786094,0.000416,120]
[394803889,1763967056463,-1352.36,0.000416,30]
[394803890,1763967056472,-2863.74,0.000416,14]
[394803891,1763967056482,-1081.66,0.00041603,30]
[394803892,1763967056491,-1081.66,0.00041603,30]
[394803893,1763967056501,-897.72,0.00041643,8]
[394803894,1763967056511,-1554.11,0.00041643,2]
[394803895,1763967056520,-1000.0,0.00041644,15]
[394803896,1763967056530,-1082.0,0.00041644,120]
[394803897,1763967056539,-1756.81594341,0.0004166,120]
[394803898,1763967056549,-500.0,0.00041674,8]
[394803899,1763967056559,-404.89,0.0004168,2]
[394803900,1763967056568,-150.0,0.000417,120]
[394803901,1763967056577,-1966427.3942,0.00041711,30]
[394803902,1763967056587,-150.0,0.00041713,120]
[394803903,1763967056597,-1000.0,0.00041781,15]
[394803904,1763967056606,-1082.0,0.00041781,120]
[394803905,1763967056615,-1098.0,0.000418,120]
[394803906,1763967056624,-166.72,0.00041808,2]
[394803907,1763967056634,-3250.33,0.00041811,8]
[394803908,1763967056643,-500.0,0.00041811,8]
[394803909,1763967056652,-645.2893263,0.00041812,8]
[394803910,1763967056663,-1251.15,0.00041812,8]
[394803911,1763967056673,-1813.73,0.00041812,8]
[394803912,1763967056682,-689.44,0.00041812,8]
[394803913,1763967056691,-500.0,0.00041816,8]
[394803915,1763967056701,-568.85,0.00041816,8]
[394803916,1763967056710,-1571.63,0.00041816,8]
[394803917,1763967056720,-750.0,0.0004182,20]
[394803918,1763967056730,-225.28061177,0.00041838,120]
[394803919,1763967056739,-1081.66,0.00041877,30]
[394803920,1763967056748,-1081.66,0.00041877,30]
[394803921,1763967056757,-1000.0,0.00041879,120]
[394803922,1763967056767,-1000.0,0.00041879,120]
[394803923,1763967056777,-1000.0,0.00041879,120]
[394803924,1763967056786,-1000.0,0.00041879,120]
[394803925,1763967056796,-1000.0,0.00041879,120]
[394803926,1763967056806,-1000.0,0.00041879,120]
[394803927,1763967056815,-1000.0,0.00041879,120]
[394803928,1763967056825,-1000.0,0.00041879,120]
[394803929,1763967056834,-1000.0,0.00041879,120]
[394803930,1763967056844,-1000.0,0.00041879,120]
[394803931,1763967056853,-1000.0,0.00041879,120]
[394803932,1763967056863,-1000.0,0.00041879,120]
[394803933,1763967056872,-1000.0,0.00041879,120]
[394803934,1763967056881,-1000.0,0.00041879,120]
[394803935,1763967056891,-1000.0,0.00041879,120]
[394803936,1763967056901,-1000.0,0.00041879,120]
[394803937,1763967056910,-1000.0,0.00041879,120]
[394803938,1763967056920,-1000.0,0.00041879,120]
[394803939,1763967056930,-1000.0,0.00041879,120]
[394803940,1763967056939,-1000.0,0.00041879,120]
[394803941,1763967056950,-1000.0,0.00041879,120]
[394803942,1763967056959,-1000.0,0.00041879,120]
[394803943,1763967056969,-1000.0,0.00041879,120]
[394803944,1763967056979,-1000.0,0.00041879,120]
[394803945,1763967056988,-1000.0,0.00041879,120]
[394803946,1763967056998,-1000.0,0.00041879,120]
[394803947,1763967057008,-1000.0,0.00041879,120]
[394803948,1763967057017,-1000.0,0.00041879,120]
[394803949,1763967057027,-1000.0,0.00041879,120]
[394803950,1763967057036,-1000.0,0.00041879,120]
[394803951,1763967057045,-1000.0,0.00041879,120]
[394803952,1763967057055,-1000.0,0.00041879,120]
[394803953,1763967057065,-1000.0,0.00041879,120]
[394803954,1763967057074,-1000.0,0.00041879,120]
[394803955,1763967057085,-1000.0,0.00041879,120]
[394803956,1763967057094,-1000.0,0.00041879,120]
[394803957,1763967057104,-1000.0,0.00041879,120]
[394803958,1763967057113,-1000.0,0.00041879,120]
[394803959,1763967057123,-1000.0,0.00041879,120]
[394803960,1763967057133,-1000.0,0.00041879,120]
[394803961,1763967057143,-1000.0,0.00041879,120]
[394803962,1763967057152,-1000.0,0.00041879,120]
[394803963,1763967057163,-1000.0,0.00041879,120]
[394803964,1763967057172,-1000.0,0.00041879,120]
[394803965,1763967057182,-1481.46795362,0.000419,120]
[394803966,1763967057192,-204.87050271,0.000419,120]
[394803967,1763967057201,-608.15326422,0.000419,120]
[394803968,1763967057211,-186.4723035,0.000419,120]
[394803969,1763967057221,-203.3165423,0.000419,120]
[394803970,1763967057231,-417.48385219,0.000419,120]
[394803971,1763967057241,-659.82959348,0.000419,120]
[394803972,1763967057250,-300.51744729,0.000419,120]
[394803973,1763967057260,-1539.71117824,0.000419,120]
[394803974,1763967057271,-1372.13534553,0.000419,30]
[394803975,1763967057280,-76476.2408097,0.000419,120]
[394803976,1763967057294,-170.48,0.000419,14]
[394803977,1763967057305,-161.19,0.000419,30]
[394803978,1763967057315,-150.0,0.000419,2]
[394803979,1763967057324,-150.0,0.000419,2]
[394803980,1763967057334,-192.98010879,0.000419,2]
[394803981,1763967057344,-1000.0,0.00041902,120]
[394803982,1763967057354,-1000.0,0.00041902,120]
[394803983,1763967057363,-1000.0,0.00041902,120]
[394803984,1763967057374,-1000.0,0.00041902,120]
[394803985,1763967057384,-1000.0,0.00041902,120]
[394803986,1763967057394,-1000.0,0.00041904,120]
[394803987,1763967057403,-1000.0,0.00041904,120]
[394803988,1763967057414,-1000.0,0.00041904,120]
[394803989,1763967057423,-1000.0,0.00041904,120]
[394803990,1763967057434,-1000.0,0.00041904,120]
[394803991,1763967057443,-1000.0,0.00041904,120]
[394803992,1763967057453,-1000.0,0.00041904,120]
[394803993,1763967057463,-1000.0,0.00041904,120]
[394803994,1763967057473,-1000.0,0.00041904,120]
[394803995,1763967057483,-1000.0,0.00041904,120]
[394803996,1763967057493,-1000.0,0.00041904,120]
[394803997,1763967057502,-1000.0,0.00041904,120]
[394803998,1763967057512,-1000.0,0.00041904,120]
[394803999,1763967057522,-1000.0,0.00041904,120]
[394804000,1763967057531,-1000.0,0.00041904,120]
[394804001,1763967057541,-1000.0,0.00041904,120]
[394804002,1763967057551,-1000.0,0.00041904,120]
[394804003,1763967057560,-1000.0,0.00041904,120]
[394804004,1763967057569,-1000.0,0.00041905,120]
[394804005,1763967057579,-1000.0,0.00041905,120]
[394804006,1763967057588,-1000.0,0.00041905,120]
[394804007,1763967057598,-1000.0,0.00041905,120]
[394804008,1763967057607,-1000.0,0.00041905,120]
[394804009,1763967057617,-1000.0,0.00041905,120]
[394804010,1763967057627,-1000.0,0.00041905,120]
[394804011,1763967057637,-1000.0,0.00041905,120]
[394804012,1763967057647,-1000.0,0.00041905,120]
[394804013,1763967057657,-1000.0,0.00041905,120]
[394804014,1763967057667,-1000.0,0.00041905,120]
[394804015,1763967057676,-1000.0,0.00041905,120]
[394804016,1763967057686,-1000.0,0.00041905,120]
[394804017,1763967057697,-1000.0,0.00041905,120]
[394804018,1763967057706,-1000.0,0.00041905,120]
[394804019,1763967057716,-1000.0,0.00041905,120]
[394804020,1763967057726,-1000.0,0.00041905,120]
[394804021,1763967057736,-1000.0,0.00041905,120]
[394804022,1763967057746,-1000.0,0.00041905,120]
[394804023,1763967057764,-1000.0,0.00041905,120]
[394804024,1763967057774,-1000.0,0.00041905,120]
[394804025,1763967057783,-1000.0,0.00041905,120]
[394804026,1763967057793,-1000.0,0.00041905,120]
[394804027,1763967057802,-1000.0,0.00041905,120]
[394804028,1763967057813,-1000.0,0.00041905,120]
[394804029,1763967057823,-1000.0,0.00041905,120]
[394804030,1763967057833,-1000.0,0.00041905,120]
[394804031,1763967057843,-1000.0,0.00041905,120]
[394804032,1763967057853,-1000.0,0.00041905,120]
[394804033,1763967057863,-1000.0,0.00041905,120]
[394804034,1763967057873,-1000.0,0.00041905,120]
[394804035,1763967057882,-1000.0,0.00041905,120]
[394804036,1763967057891,-1000.0,0.00041905,120]
[394804037,1763967057901,-897.95232322,0.00041917,8]
[394804038,1763967057911,-1554.11,0.00041917,2]
[394804039,1763967057921,-1000.0,0.00041918,15]
[394804040,1763967057931,-1082.0,0.00041918,120]
[394804041,1763967057942,-50000.0,0.0004192,30]
[394804042,1763967057952,-50000.0,0.0004192,31]
[394804043,1763967057962,-50000.0,0.0004192,32]
[394804044,1763967057972,-50000.0,0.0004192,33]
[394804045,1763967057983,-25282659.59458166,0.00041921,7]
[394804046,1763967058375,-20205.31889908,0.00041921,7]
[394804047,1763967058387,-547.45122199,0.00041921,7]
[394804048,1763967058398,-1139.85492254,0.00041921,7]
[394804049,1763967058410,-455.83943095,0.00041921,7]
[394804050,1763967058421,-4307.30802088,0.00041921,7]
[394804051,1763967058432,-329.48271985,0.00041921,7]
[394804052,1763967058443,-4194.91811425,0.00041921,7]
[394804053,1763967058455,-7497.67389955,0.00041921,7]
[394804058,1763967145532,515.24592575,0.00017,30]
[394804100,1763968232253,-150.6,0.00019377,2]
[394804101,1763968232263,-150.6,0.00020517,2]
[394804102,1763968232272,-1200.0,0.00020999,2]
[394804103,1763968232281,-300.0,0.00020999,2]
[394804104,1763968232291,-203.0,0.00020999,2]
[394804105,1763968232300,-966.33334476,0.00021,2]
[394804106,1763968232311,-667.21344307,0.00021,2]
[394804107,1763968232322,-3839.66373871,0.00021,2]
[394804108,1763968232333,-6843.08298175,0.00021,2]
[394804109,1763968232344,-72314.08228914,0.00021,2]
[394804110,1763968232354,-150.6,0.00021656,2]
[394804111,1763968232364,-150.6,0.00022796,2]
[394804112,1763968232374,-150.6,0.00023936,2]
[394804113,1763968232384,-150.6,0.00025076,2]
[394804114,1763968232393,-150.6,0.00026216,2]
[394804115,1763968232403,-150.6,0.00027355,2]
[394804116,1763968232412,-150.6,0.00028495,2]
[394804117,1763968232423,-1096.0,0.0002891,5]
[394804118,1763968232433,-150.6,0.00029635,2]
[394804119,1763968232442,-150.6,0.00030775,2]
[394804120,1763968232451,-150.6,0.00031915,2]
[394804121,1763968232461,-150.6,0.00033055,2]
[394804122,1763968232470,-150.6,0.00034194,2]
[394804123,1763968232479,-150.6,0.00035334,2]
[394804124,1763968232488,-151.907969,0.00035647,2]
[394804125,1763968232497,-151.0,0.00036,14]
[394804127,1763968232506,-154.0204295,0.00036,2]
[394804129,1763968232515,-150.6,0.00036474,2]
[394804131,1763968232525,-522.0,0.000365,14]
[394804133,1763968232535,-999.0,0.0003668,3]
[394804135,1763968232544,-12198.07986933,0.00036716,2]
[394804137,1763968232555,-525.74328535,0.00036716,2]
[394804140,1763968232566,-1337.70986208,0.00036716,2]
[394804142,1763968232580,-3725.26912594,0.00036716,2]
[394804155,1763968238316,-3448.8,0.00036716,2]
[394804156,1763968238329,-299.69787448,0.00036716,2]
[394804158,1763968240359,-695.42101544,0.00036716,2]
[394804159,1763968240371,-91316.53896738,0.00036716,2]
[394804160,1763968240381,-592.86986785,0.000368,2]
[394804161,1763968240392,-1762.09206947,0.000369,2]
[394804162,1763968240402,-500.0,0.00037,14]
[394804163,1763968240411,-166.66,0.00037011,30]
[394804164,1763968240421,-168.0,0.00037197,2]
[394804165,1763968240432,-168.0,0.00037208,2]
[394804166,1763968240442,-1762.09206938,0.00037446,2]
[394804167,1763968240451,-168.0,0.00037523,2]
[394804168,1763968240461,-500.0,0.00037534,120]
[394804169,1763968240470,-150.6,0.00037614,2]
[394804170,1763968240480,-532.0,0.00037696,120]
[394804171,1763968240489,-200.0,0.000377,120]
[394804172,1763968240499,-150.0,0.00037701,7]
[394804173,1763968240508,-150.0,0.00037701,7]
[394804174,1763968240517,-150.0,0.00037701,7]
[394804175,1763968240526,-150.0,0.00037701,7]
[394804176,1763968240539,-153.23992756,0.00037701,7]
[394804177,1763968240549,-150.0,0.00037701,7]
[394804178,1763968240559,-150.0,0.00037701,7]
[394804179,1763968240568,-150.0,0.00037701,7]
[394804180,1763968240577,-150.0,0.00037701,7]
[394804181,1763968240588,-150.0,0.00037701,7]
[394804182,1763968240602,-166.66,0.0003779,30]
[394804183,1763968240611,-500.0,0.00037807,8]
[394804184,1763968240621,-500.0,0.00037807,8]
[394804185,1763968240631,-512.83166963,0.00037807,8]
[394804186,1763968240642,-165.62572175,0.00037807,8]
[394804187,1763968240651,-500.0,0.00037807,8]
[394804188,1763968240660,-325.46572805,0.00037807,8]